fUST/lending_fUST_20250126
["ID","MTS","AMOUNT","RATE_DAILY","PERIOD"]
[350446879,1737882646963,-500.0,0.00016575,2]
[350446880,1737882646975,-500.0,0.00016575,2]
[350446881,1737882646987,-500.0,0.00016575,2]
[350446882,1737882646997,-500.0,0.00016575,2]
[350446883,1737882647008,-500.0,0.00016575,2]
[350446884,1737882647019,-500.0,0.00016575,2]
[350446885,1737882647032,-500.0,0.00016575,2]
[350446886,1737882647043,-151.0,0.00016575,2]
[350446887,1737882647054,-500.0,0.00016575,2]
[350446888,1737882647065,-500.0,0.00016575,2]
[350446889,1737882647076,-535.40542,0.00016575,2]
[350446890,1737882647087,-500.0,0.00016575,2]
[350446891,1737882647097,-500.0,0.00016575,2]
[350446892,1737882647107,-500.0,0.00016575,2]
[350446893,1737882647117,-500.0,0.00016575,2]
[350446894,1737882647128,-500.0,0.00016575,2]
[350446895,1737882647138,-500.0,0.00016575,2]
[350446896,1737882647148,-500.0,0.00016575,2]
[350446897,1737882647159,-1164.84,0.00016575,2]
[350446898,1737882647169,-500.0,0.00016575,2]
[350446899,1737882647179,-500.0,0.00016575,2]
[350446900,1737882647190,-151.0,0.00016575,2]
[350446901,1737882647200,-500.0,0.00016575,2]
[350446902,1737882647211,-151.0,0.00016575,2]
[350446903,1737882647221,-506.05,0.00016575,2]
[350446904,1737882647232,-151.0,0.00016575,2]
[350446905,1737882647242,-500.0,0.00016575,2]
[350446906,1737882647253,-500.0,0.00016575,2]
[350446907,1737882647263,-500.0,0.00016575,2]
[350446908,1737882647280,-509.601579,0.00016575,2]
[350446909,1737882647291,-500.0,0.00016575,2]
[350446910,1737882647301,-500.0,0.00016575,2]
[350446911,1737882647311,-500.0,0.00016575,2]
[350446912,1737882647323,-500.0,0.00016575,2]
[350446913,1737882647333,-2892.35,0.00016575,2]
[350446914,1737882647344,-500.0,0.00016575,2]
[350446915,1737882647355,-1317.95,0.00016575,2]
[350446916,1737882647365,-487.46616063,0.00016575,2]
[350446917,1737882647376,-500.0,0.00016575,2]
[350446918,1737882647387,-500.0,0.00016575,2]
[350446919,1737882647398,-500.0,0.00016575,2]
[350446920,1737882647408,-158.23099214,0.00016575,2]
[350446925,1737883142260,155.44,0.000219,31]
[350446926,1737883142326,155.44,0.000219,31]
[350446927,1737883142384,155.44,0.000219,31]
[350446928,1737883142447,155.44,0.000219,31]
[350446929,1737883142507,155.44,0.000219,31]
[350446930,1737883142562,155.44,0.000219,31]
[350446931,1737883142604,155.44,0.000219,31]
[350446932,1737883172357,184.833994,0.00013699,2]
[350446933,1737883194094,205.336831,0.00013973,2]
[350446940,1737883606796,300.0,0.00014914,2]
[350446952,1737883743222,10000.0,0.00022,30]
[350446953,1737883748905,10000.0,0.00022,30]
[350446954,1737883755338,10000.0,0.00022,30]
[350446955,1737883761379,10000.0,0.00022,30]
[350446956,1737883768963,4115.73,0.00022,30]
[350446957,1737883787980,10000.0,0.00022,30]
[350446958,1737883800728,7329.41,0.00022,30]
[350446959,1737883812074,265.740934,0.00014909,2]
[350446960,1737883821468,10000.0,0.00022,30]
[350446961,1737883829208,10000.0,0.00022,30]
[350446999,1737883832306,-265.740934,0.0001506,2]
[350447000,1737883832316,-85.5029725,0.00015212,2]
[350447006,1737883835671,10000.0,0.00022,30]
[350447053,1737883841881,3443.26763885,0.00022,30]
[350447080,1737883843101,-180.2379615,0.00015212,2]
[350447081,1737883843110,-300.0,0.00015371,2]
[350447082,1737883843120,-24900.0,0.00015372,2]
[350447083,1737883843129,-3114.7471332,0.00015447,2]
[350447084,1737883843138,-259.72,0.0001587,2]
[350447085,1737883843148,-1356.81381529,0.00016074,2]
[350447086,1737883843158,-179.0,0.00016089,2]
[350447088,1737883843167,-179.0,0.00016089,2]
[350447089,1737883843176,-180.21,0.00016089,2]
[350447090,1737883843185,-237.68107349,0.00016174,2]
[350447091,1737883843195,-1446.88341358,0.00016174,2]
[350447092,1737883843205,-1180.66286154,0.00016174,2]
[350447093,1737883843214,-246.65740943,0.00016337,2]
[350447094,1737883843223,-395.0,0.00016373,2]
[350447095,1737883843233,-168.86616585,0.00016421,2]
[350447096,1737883843242,-2678.54719193,0.00016422,2]
[350447107,1737883845971,-180.2379615,0.0001506,2]
[350447108,1737883845981,-13186.1811229,0.0001623,2]
[350447109,1737883845991,-500.0,0.00016437,2]
[350447110,1737883846001,-357.3532051,0.00016437,2]
[350447111,1737883846010,-500.0,0.00016437,2]
[350447112,1737883846019,-246.37226423,0.00016437,2]
[350447113,1737883846029,-500.0,0.00016438,2]
[350447115,1737883846043,-564.5,0.00016438,2]
[350447117,1737883846053,-500.0,0.00016438,2]
[350447119,1737883846063,-500.0,0.00016438,2]
[350447122,1737883846072,-178.64812816,0.00016438,2]
[350447124,1737883846082,-500.0,0.00016438,2]
[350447126,1737883846092,-500.0,0.00016438,2]
[350447128,1737883846101,-500.0,0.00016438,2]
[350447130,1737883846110,-423.49286134,0.00016438,2]
[350447132,1737883846121,-500.0,0.00016438,2]
[350447134,1737883846131,-209.44,0.00016438,2]
[350447135,1737883846140,-18.6509418,0.00016438,2]
[350447136,1737883846153,-481.3490582,0.00016438,2]
[350447137,1737883846162,-500.0,0.00016438,2]
[350447138,1737883846172,-376.32328141,0.00016438,2]
[350447139,1737883852903,10000.0,0.00018,30]
[350447140,1737883863103,433.44,0.00018,30]
[350447143,1737884206471,184.540365,0.00013699,2]
[350447144,1737884281337,195.069989,0.00013973,2]
[350447149,1737884812950,266.839468,0.00015034,2]
[350447291,1737885040326,-266.839468,0.00015339,2]
[350447292,1737885040336,-266.839468,0.00015494,2]
[350447293,1737885040345,-249.151,0.0001574,2]
[350447294,1737885040355,-395.0,0.00016317,2]
[350447295,1737885040364,-329.53316621,0.00016338,2]
[350447296,1737885040373,-1187.21208837,0.00016338,2]
[350447297,1737885040383,-329.53316619,0.00016372,2]
[350447298,1737885040394,-329.53316619,0.00016407,2]
[350447299,1737885040404,-372.0447736,0.00016409,2]
[350447300,1737885040413,-341.76900786,0.00016438,2]
[350447301,1737885040422,-500.0,0.00016438,2]
[350447303,1737885040432,-500.0,0.00016438,2]
[350447305,1737885040442,-500.0,0.00016438,2]
[350447307,1737885040451,-500.0,0.00016438,2]
[350447309,1737885040461,-502.26,0.00016438,2]
[350447311,1737885040471,-500.0,0.00016438,2]
[350447313,1737885040480,-500.0,0.00016438,2]
[350447315,1737885040490,-221.97,0.00016438,2]
[350447317,1737885040499,-500.0,0.00016438,2]
[350447319,1737885040509,-329.4855921,0.00016438,2]
[350447321,1737885040518,-500.0,0.00016438,2]
[350447323,1737885040528,-500.0,0.00016438,2]
[350447325,1737885040537,-500.0,0.00016438,2]
[350447327,1737885040547,-500.0,0.00016438,2]
[350447329,1737885040557,-500.0,0.00016438,2]
[350447345,1737885040701,-500.0,0.00016438,2]
[350447347,1737885040711,-593.84824143,0.00016438,2]
[350447349,1737885040720,-500.0,0.00016438,2]
[350447351,1737885040730,-500.0,0.00016438,2]
[350447353,1737885040740,-500.0,0.00016438,2]
[350447355,1737885040749,-500.0,0.00016438,2]
[350447357,1737885040758,-500.0,0.00016438,2]
[350447359,1737885040768,-500.0,0.00016438,2]
[350447361,1737885040777,-500.0,0.00016438,2]
[350447363,1737885040787,-500.0,0.00016438,2]
[350447365,1737885040797,-598.33,0.00016438,2]
[350447367,1737885040806,-500.0,0.00016438,2]
[350447369,1737885040816,-500.0,0.00016438,2]
[350447371,1737885040825,-500.0,0.00016438,2]
[350447373,1737885040835,-1067.77,0.00016438,2]
[350447375,1737885040844,-500.0,0.00016438,2]
[350447377,1737885040854,-500.0,0.00016438,2]
[350447379,1737885040863,-500.0,0.00016438,2]
[350447381,1737885040873,-532.69742579,0.00016438,2]
[350447383,1737885040882,-500.0,0.00016438,2]
[350447385,1737885040891,-500.0,0.00016438,2]
[350447387,1737885040900,-674.05,0.00016438,2]
[350447389,1737885040910,-500.0,0.00016438,2]
[350447391,1737885040919,-500.0,0.00016438,2]
[350447393,1737885040928,-500.0,0.00016438,2]
[350447395,1737885040938,-500.0,0.00016438,2]
[350447397,1737885040947,-500.0,0.00016438,2]
[350447399,1737885040957,-500.0,0.00016438,2]
[350447401,1737885040966,-500.0,0.00016438,2]
[350447403,1737885040976,-500.0,0.00016438,2]
[350447405,1737885040986,-500.0,0.00016438,2]
[350447407,1737885040995,-500.0,0.00016438,2]
[350447409,1737885041005,-500.0,0.00016438,2]
[350447411,1737885041015,-2209.43,0.00016438,2]
[350447413,1737885041024,-500.0,0.00016438,2]
[350447415,1737885041034,-500.0,0.00016438,2]
[350447417,1737885041043,-1228.96,0.00016438,2]
[350447419,1737885041052,-500.0,0.00016438,2]
[350447421,1737885041061,-500.0,0.00016438,2]
[350447423,1737885041070,-315.63320055,0.00016438,2]
[350447425,1737885041080,-500.0,0.00016438,2]
[350447427,1737885041089,-4008.44,0.00016438,2]
[350447429,1737885041098,-500.0,0.00016438,2]
[350447431,1737885041107,-500.0,0.00016438,2]
[350447433,1737885041117,-199.44,0.00016438,2]
[350447435,1737885041126,-500.0,0.00016438,2]
[350447437,1737885041135,-500.0,0.00016438,2]
[350447438,1737885041145,-500.0,0.00016438,2]
[350447439,1737885041155,-500.0,0.00016438,2]
[350447440,1737885041164,-500.0,0.00016438,2]
[350447441,1737885041173,-500.0,0.00016438,2]
[350447442,1737885041183,-500.0,0.00016438,2]
[350447443,1737885041192,-500.0,0.00016438,2]
[350447444,1737885041202,-500.0,0.00016438,2]
[350447445,1737885041211,-500.0,0.00016438,2]
[350447446,1737885041221,-500.0,0.00016438,2]
[350447447,1737885041234,-500.0,0.00016438,2]
[350447448,1737885041245,-500.46668953,0.00016438,2]
[350447449,1737885041264,-3584.9,0.00016438,2]
[350447450,1737885041275,-500.0,0.00016438,2]
[350447451,1737885041285,-500.0,0.00016438,2]
[350447452,1737885041296,-747.4,0.00016438,2]
[350447453,1737885041306,-692.26,0.00016438,2]
[350447454,1737885041316,-500.0,0.00016438,2]
[350447455,1737885041326,-630.61,0.00016438,2]
[350447456,1737885041336,-500.0,0.00016438,2]
[350447457,1737885041347,-500.0,0.00016438,2]
[350447458,1737885041356,-720.19,0.00016438,2]
[350447459,1737885041366,-500.0,0.00016438,2]
[350447461,1737885041376,-500.0,0.00016438,2]
[350447463,1737885041386,-500.0,0.00016438,2]
[350447465,1737885041396,-500.0,0.00016438,2]
[350447467,1737885041406,-2185.91,0.00016438,2]
[350447469,1737885041416,-500.0,0.00016438,2]
[350447472,1737885041425,-9458.91,0.00016438,2]
[350447474,1737885041435,-500.0,0.00016438,2]
[350447475,1737885041446,-500.0,0.00016438,2]
[350447477,1737885041455,-500.0,0.00016438,2]
[350447479,1737885041465,-858.74,0.00016438,2]
[350447481,1737885041475,-500.0,0.00016438,2]
[350447482,1737885041485,-500.0,0.00016438,2]
[350447485,1737885041495,-500.0,0.00016438,2]
[350447486,1737885041505,-1365.85,0.00016438,2]
[350447489,1737885041515,-954.5,0.00016438,2]
[350447491,1737885041524,-500.0,0.00016438,2]
[350447493,1737885041534,-500.0,0.00016438,2]
[350447494,1737885041545,-500.0,0.00016438,2]
[350447497,1737885041554,-181.0,0.00016438,2]
[350447498,1737885041564,-329.53316619,0.00016441,2]
[350447501,1737885041574,-329.53316619,0.00016475,2]
[350447503,1737885041583,-501.586,0.00016498,2]
[350447505,1737885041594,-187.85001861,0.00016498,2]
[350447507,1737885041605,-636.63784047,0.0001657,2]
[350447509,1737885041615,-500.0,0.0001657,2]
[350447511,1737885041625,-500.0,0.0001657,2]
[350447513,1737885041635,-500.0,0.0001657,2]
[350447515,1737885041644,-172.60403316,0.0001657,2]
[350447517,1737885041654,-500.0,0.0001657,2]
[350447519,1737885041664,-500.0,0.0001657,2]
[350447521,1737885041674,-592.75242287,0.0001657,2]
[350447523,1737885041683,-500.0,0.0001657,2]
[350447525,1737885041693,-500.0,0.0001657,2]
[350447527,1737885041703,-500.0,0.0001657,2]
[350447529,1737885041713,-500.0,0.0001657,2]
[350447531,1737885041723,-500.0,0.0001657,2]
[350447533,1737885041732,-500.0,0.0001657,2]
[350447535,1737885041742,-500.0,0.0001657,2]
[350447537,1737885041751,-500.0,0.0001657,2]
[350447539,1737885041761,-281.59396342,0.0001657,2]
[350447541,1737885041771,-500.0,0.0001657,2]
[350447543,1737885041780,-500.0,0.0001657,2]
[350447545,1737885041790,-500.0,0.0001657,2]
[350447547,1737885041799,-362.77310637,0.0001657,2]
[350447549,1737885041808,-350.31721985,0.0001657,2]
[350447551,1737885041818,-500.0,0.0001657,2]
[350447553,1737885041828,-500.0,0.0001657,2]
[350447555,1737885041838,-500.0,0.0001657,2]
[350447556,1737885041847,-500.0,0.0001657,2]
[350447559,1737885041856,-500.0,0.0001657,2]
[350447561,1737885041866,-500.0,0.0001657,2]
[350447563,1737885041876,-500.0,0.0001657,2]
[350447564,1737885041885,-500.0,0.0001657,2]
[350447566,1737885041895,-500.0,0.0001657,2]
[350447568,1737885041904,-500.0,0.0001657,2]
[350447570,1737885041914,-500.0,0.0001657,2]
[350447572,1737885041924,-500.0,0.0001657,2]
[350447574,1737885041933,-500.0,0.0001657,2]
[350447576,1737885041943,-500.0,0.0001657,2]
[350447579,1737885041953,-500.0,0.0001657,2]
[350447581,1737885041963,-500.0,0.0001657,2]
[350447583,1737885041974,-500.0,0.0001657,2]
[350447585,1737885041984,-500.0,0.0001657,2]
[350447587,1737885041993,-500.0,0.0001657,2]
[350447589,1737885042003,-500.0,0.0001657,2]
[350447591,1737885042013,-500.0,0.0001657,2]
[350447593,1737885042023,-500.0,0.0001657,2]
[350447595,1737885042032,-500.0,0.0001657,2]
[350447597,1737885042042,-500.0,0.0001657,2]
[350447599,1737885042052,-500.0,0.0001657,2]
[350447601,1737885042062,-500.0,0.0001657,2]
[350447603,1737885042072,-500.0,0.0001657,2]
[350447605,1737885042082,-500.0,0.0001657,2]
[350447607,1737885042092,-500.0,0.0001657,2]
[350447609,1737885042101,-298.08984932,0.0001657,2]
[350447611,1737885042113,-500.0,0.0001657,2]
[350447613,1737885042123,-502.33169482,0.00016573,2]
[350447615,1737885042135,-501.16142,0.00016573,2]
[350447617,1737885042145,-502.3083084,0.00016573,2]
[350447619,1737885042155,-500.0,0.00016573,2]
[350447621,1737885042164,-267.23990125,0.00016573,2]
[350447624,1737885042179,-500.0,0.00016573,2]
[350447626,1737885042194,-500.0,0.00016573,2]
[350447628,1737885042212,-501.20761089,0.00016573,2]
[350447631,1737885042225,-158.30453353,0.00016573,2]
[350447633,1737885042238,-500.0,0.00016573,2]
[350447636,1737885042252,-500.0,0.00016574,2]
[350447638,1737885042264,-363.83721892,0.00016574,2]
[350447640,1737885042275,-265.92815606,0.00016574,2]
[350447642,1737885042286,-500.0,0.00016574,2]
[350447645,1737885042297,-500.0,0.00016574,2]
[350447647,1737885042309,-500.0,0.00016574,2]
[350447649,1737885042322,-23407.18164038,0.00016575,5]
[350447651,1737885042334,-63347.72227711,0.00016575,5]
[350447923,1737885044866,-500.0,0.00016438,2]
[350447926,1737885044877,-8091.80000235,0.00016575,5]
[350447930,1737885044923,-7386.88314468,0.00016575,5]
[350447966,1737885046292,-645.96,0.00016438,2]
[350447969,1737885046304,-190.36,0.00016438,2]
[350447971,1737885046319,-309.64,0.00016438,2]
[350447973,1737885046332,-735.96,0.00016575,5]
[350448011,1737885072287,184.540365,0.00013699,2]
[350448012,1737885142718,247.483319,0.00013973,2]
[350448013,1737885318918,340.23514375,0.00015027,2]
[350448014,1737885416215,266.839468,0.00014976,2]
[350448015,1737885424471,266.839468,0.00014976,2]
[350448016,1737885487724,-168.9,0.000219,31]
[350448017,1737885487751,-2531.8,0.00022,30]
[350448018,1737885511341,-810.55,0.00022,30]
[350448023,1737885613828,496.1610962,0.00015041,2]
[350448024,1737885620277,184.0952822,0.00014976,2]
[350448025,1737885629058,184.0952822,0.00014977,2]
[350448026,1737885637829,3276.9440594,0.00014977,2]
[350448027,1737885653489,3276.9440594,0.00014977,2]
[350448028,1737885669145,3276.9440594,0.00014977,2]
[350448029,1737885684831,1344.41367551,0.00014977,2]
[350448074,1737886232553,-266.839468,0.00015084,2]
[350448076,1737886232563,-2048.0,0.00015128,2]
[350448078,1737886232572,-3276.9440594,0.00015129,2]
[350448080,1737886232581,-1364.4100908,0.00015214,2]
[350448082,1737886232591,-643.0924223,0.00015337,2]
[350448084,1737886232600,-249.6237159,0.00015631,2]
[350448086,1737886232610,-297.141,0.0001574,2]
[350448088,1737886232619,-300.0,0.00015799,2]
[350448090,1737886232628,-263.6420771,0.000158,2]
[350448092,1737886232638,-215.3965244,0.000158,2]
[350448094,1737886232647,-215.3965244,0.000158,2]
[350448096,1737886232657,-153.0,0.000158,2]
[350448098,1737886232666,-354.1278896,0.000158,2]
[350448100,1737886232676,-153.0,0.000158,2]
[350448102,1737886232685,-354.1278896,0.000158,2]
[350448104,1737886232694,-255.7881047,0.000163,2]
[350448106,1737886232703,-354.1278896,0.000163,2]
[350448108,1737886232712,-440.0376653,0.000163,2]
[350448110,1737886232722,-440.139092,0.00016301,2]
[350448113,1737886232731,-154.2803338,0.00016301,2]
[350448116,1737886232740,-154.2803338,0.00016301,2]
[350448120,1737886232750,-215.3965244,0.00016301,2]
[350448123,1737886232759,-215.3965244,0.00016301,2]
[350448126,1737886232768,-215.3965244,0.00016301,2]
[350448129,1737886232777,-215.3965244,0.00016301,2]
[350448132,1737886232788,-215.3965244,0.00016301,2]
[350448135,1737886232797,-215.3965244,0.00016301,2]
[350448138,1737886232806,-215.3965244,0.00016301,2]
[350448141,1737886232815,-215.3965244,0.00016301,2]
[350448144,1737886232824,-215.3965244,0.00016301,2]
[350448146,1737886232834,-154.2803338,0.00016301,2]
[350448150,1737886232843,-197.32592754,0.00016338,2]
[350448153,1737886232852,-1140.81367104,0.00016338,2]
[350448156,1737886232861,-154.2803338,0.000164,2]
[350448157,1737886232870,-153.0,0.000164,2]
[350448159,1737886232879,-154.2803338,0.000164,2]
[350448162,1737886232888,-154.2803338,0.000164,2]
[350448163,1737886232898,-154.2803338,0.000164,2]
[350448166,1737886232907,-215.3965244,0.000164,2]
[350448167,1737886232916,-154.2803338,0.000164,2]
[350448168,1737886232927,-154.2803338,0.000164,2]
[350448169,1737886232937,-354.0163353,0.000164,2]
[350448170,1737886232949,-655.7991011,0.00016409,2]
[350448171,1737886232959,-500.0,0.00016438,2]
[350448172,1737886232969,-500.0,0.00016438,2]
[350448173,1737886232979,-500.9281746,0.00016438,2]
[350448174,1737886232989,-500.0,0.00016438,2]
[350448175,1737886233000,-422.20212521,0.00016438,2]
[350448176,1737886233009,-500.96442418,0.00016438,2]
[350448177,1737886233019,-500.0,0.00016438,2]
[350448178,1737886233033,-500.0,0.00016438,2]
[350448179,1737886233043,-500.0,0.00016438,2]
[350448180,1737886233052,-500.0,0.00016438,2]
[350448181,1737886233062,-501.25066047,0.00016438,2]
[350448182,1737886233071,-500.0,0.00016438,2]
[350448183,1737886233081,-500.0,0.00016438,2]
[350448184,1737886233090,-286.96,0.00016438,2]
[350448185,1737886233099,-500.0,0.00016438,2]
[350448186,1737886233109,-500.0,0.00016438,2]
[350448187,1737886233120,-500.0,0.00016438,2]
[350448188,1737886233129,-500.0,0.00016438,2]
[350448189,1737886233139,-500.0,0.00016438,2]
[350448190,1737886233149,-500.0,0.00016438,2]
[350448191,1737886233159,-328.02953277,0.00016438,2]
[350448192,1737886233168,-500.0,0.00016438,2]
[350448193,1737886233178,-500.0,0.00016438,2]
[350448194,1737886233188,-500.0,0.00016438,2]
[350448195,1737886233197,-500.0,0.00016438,2]
[350448196,1737886233207,-171.76315824,0.00016438,2]
[350448197,1737886233216,-500.0,0.00016438,2]
[350448198,1737886233227,-500.0,0.00016438,2]
[350448199,1737886233237,-500.0,0.00016438,2]
[350448200,1737886233246,-1023.28,0.00016438,2]
[350448201,1737886233256,-1308.94,0.00016438,2]
[350448202,1737886233266,-500.0,0.00016438,2]
[350448203,1737886233276,-500.0,0.00016438,2]
[350448204,1737886233286,-619.05,0.00016438,2]
[350448205,1737886233295,-500.0,0.00016438,2]
[350448206,1737886233305,-500.0,0.00016438,2]
[350448207,1737886233315,-411.34454212,0.00016438,2]
[350448208,1737886233325,-500.0,0.00016438,2]
[350448209,1737886233335,-500.0,0.00016438,2]
[350448210,1737886233346,-500.0,0.00016438,2]
[350448211,1737886233356,-500.0,0.00016438,2]
[350448212,1737886233366,-575.62279773,0.00016438,2]
[350448213,1737886233376,-2559.26,0.00016438,2]
[350448214,1737886233386,-500.0,0.00016438,2]
[350448215,1737886233397,-500.0,0.00016438,2]
[350448216,1737886233406,-500.0,0.00016438,2]
[350448217,1737886233415,-500.0,0.00016438,2]
[350448218,1737886233425,-500.0,0.00016438,2]
[350448219,1737886233435,-3841.43,0.00016438,2]
[350448220,1737886233445,-1177.75,0.00016438,2]
[350448221,1737886233455,-500.0,0.00016438,2]
[350448222,1737886233476,-500.0,0.00016438,2]
[350448223,1737886233487,-500.0,0.00016438,2]
[350448224,1737886233498,-500.0,0.00016438,2]
[350448225,1737886233508,-500.0,0.00016438,2]
[350448226,1737886233519,-500.0,0.00016438,2]
[350448227,1737886233529,-500.0,0.00016438,2]
[350448228,1737886233540,-500.0,0.00016438,2]
[350448229,1737886233549,-500.0,0.00016438,2]
[350448230,1737886233559,-3435.53,0.00016438,2]
[350448231,1737886233569,-716.25,0.00016438,2]
[350448232,1737886233579,-500.0,0.00016438,2]
[350448233,1737886233590,-2094.83,0.00016438,2]
[350448234,1737886233600,-500.0,0.00016438,2]
[350448235,1737886233611,-663.41,0.00016438,2]
[350448236,1737886233621,-603.53,0.00016438,2]
[350448237,1737886233630,-500.0,0.00016438,2]
[350448238,1737886233640,-500.0,0.00016438,2]
[350448239,1737886233651,-914.72,0.00016438,2]
[350448240,1737886233661,-500.0,0.00016438,2]
[350448241,1737886233671,-690.18,0.00016438,2]
[350448242,1737886233681,-9064.79,0.00016438,2]
[350448243,1737886233691,-500.0,0.00016438,2]
[350448244,1737886233701,-500.0,0.00016438,2]
[350448245,1737886233711,-500.0,0.00016438,2]
[350448246,1737886233721,-500.0,0.00016438,2]
[350448247,1737886233732,-500.0,0.00016438,2]
[350448248,1737886233742,-500.0,0.00016438,2]
[350448249,1737886233752,-500.0,0.00016438,2]
[350448250,1737886233762,-500.0,0.00016438,2]
[350448251,1737886233772,-500.0,0.00016438,2]
[350448252,1737886233783,-500.0,0.00016438,2]
[350448253,1737886233794,-516.091476,0.00016438,2]
[350448254,1737886233804,-822.95,0.00016438,2]
[350448255,1737886233815,-500.0,0.00016438,2]
[350448256,1737886233825,-500.0,0.00016438,2]
[350448257,1737886233835,-707.6980077,0.000165,2]
[350448258,1737886233847,-154.2803338,0.000165,2]
[350448259,1737886233857,-152.0,0.00016503,2]
[350448260,1737886233867,-401.269,0.00016544,2]
[350448261,1737886233877,-191.09378131,0.00016571,2]
[350448262,1737886233887,-257.6105894,0.00016574,2]
[350448263,1737886233898,-500.0,0.00016574,2]
[350448264,1737886233908,-500.0,0.00016574,2]
[350448265,1737886233918,-615.7185752,0.00016574,2]
[350448266,1737886233928,-480.33315065,0.00016574,2]
[350448267,1737886233938,-500.0,0.00016574,2]
[350448268,1737886233948,-500.0,0.00016574,2]
[350448269,1737886233958,-500.0,0.00016574,2]
[350448270,1737886233967,-500.0,0.00016574,2]
[350448271,1737886233977,-500.0,0.00016574,2]
[350448272,1737886233987,-500.0,0.00016574,2]
[350448273,1737886233996,-500.0,0.00016574,2]
[350448274,1737886234006,-500.0,0.00016574,2]
[350448275,1737886234016,-500.0,0.00016574,2]
[350448276,1737886234030,-500.0,0.00016574,2]
[350448277,1737886234041,-500.0,0.00016574,2]
[350448278,1737886234050,-500.0,0.00016574,2]
[350448279,1737886234060,-500.0,0.00016574,2]
[350448280,1737886234071,-286.27731064,0.00016574,2]
[350448281,1737886234081,-500.0,0.00016574,2]
[350448282,1737886234091,-500.0,0.00016574,2]
[350448283,1737886234101,-500.0,0.00016574,2]
[350448284,1737886234111,-258.71808727,0.00016574,2]
[350448285,1737886234120,-500.0,0.00016574,2]
[350448286,1737886234129,-500.0,0.00016574,2]
[350448287,1737886234139,-500.0,0.00016574,2]
[350448288,1737886234148,-151.0,0.00016575,2]
[350448289,1737886234158,-178.976167,0.00016575,2]
[350448290,1737886234167,-212.850086,0.00016575,2]
[350448291,1737886234177,-155.052708,0.00016575,2]
[350448292,1737886234187,-249.64,0.00016575,2]
[350448293,1737886234196,-180.876821,0.00016575,2]
[350448294,1737886234205,-500.0,0.00016575,2]
[350448295,1737886234216,-533.56,0.00016575,2]
[350448296,1737886234225,-151.0,0.00016575,2]
[350448297,1737886234235,-151.0,0.00016575,2]
[350448298,1737886234245,-151.0,0.00016575,2]
[350448299,1737886234255,-296.766994,0.00016575,2]
[350448300,1737886234265,-160.649674,0.00016575,2]
[350448301,1737886234274,-189.378942,0.00016575,2]
[350448302,1737886234284,-267.179234,0.00016575,2]
[350448303,1737886234294,-500.0,0.00016575,2]
[350448304,1737886234304,-500.0,0.00016575,2]
[350448305,1737886234314,-151.0,0.00016575,2]
[350448306,1737886234324,-151.0,0.00016575,2]
[350448307,1737886234334,-209.39,0.00016575,2]
[350448308,1737886234344,-500.0,0.00016575,2]
[350448309,1737886234354,-500.0,0.00016575,2]